Cogmind - Beta 10.2 @@@ ROGUE MODE // 2020.11.09 @ 13:13:00 // Halloween2020/ForbiddenLore Player: Plexion Result: Self-destructed Performance ------------- Evolutions (3) 1500 Regions Visited (6) 1200 Robots Destroyed (57) 285 Value Destroyed (1575) 1575 Prototype IDs (23) 460 Alien Tech Used (0) 0 Bonus (16) 16 TOTAL SCORE: 5036 Bonus ------- Aligned with FarCom 300 Friendly Fire -284 Cogmind --------- Core Integrity 514/700 Matter 296/300 Energy 150/150 System Corruption 1% Temperature Cool (0) Movement Flying (50) Location -7/Factory Parts ------- > --- POWER (1) -------- Light Angular Momentum Engine > --- PROPULSION (4) --- Flying Fortress v7 > --- UTILITY (6) ------ Large Storage Unit High-capacity Storage Unit Long-range Sensor Array Improved Signal Interpreter Hacking Suite Hacking Suite > --- WEAPON (2) ------- Gauss Rifle Longsword +1 > --- INVENTORY (18) --- Light Nuclear Core Superbattery (2000) Advanced Terrain Scanner Advanced Terrain Scan Processor Light Armor Plating Hacking Suite Hacking Suite Hacking Suite Hacking Suite Hacking Suite System Shield System Backup Module EM Pulse Cannon Plasma Cannon Rocket Launcher Heavy Missile Launcher Plasma Cutter Peak State ------------ > --- POWER ------------ Light Angular Momentum Engine > --- PROPULSION ------- Flying Fortress v7 > --- UTILITY ---------- Medium Storage Unit High-capacity Storage Unit Long-range Sensor Array Hacking Suite Hacking Suite System Shield > --- WEAPON ----------- Gauss Rifle Longsword +1 > --- INVENTORY -------- Light Nuclear Core Superbattery Improved Signal Interpreter Advanced Terrain Scan Processor Light Armor Plating Hacking Suite Hacking Suite Hacking Suite System Shield System Backup Module EM Pulse Cannon Plasma Cannon Rocket Launcher Heavy Missile Launcher Plasma Cutter [Rating: 69] Favorites ----------- Power Ion Engine Engine Ion Engine Power Core Light Nuclear Core Propulsion Light Treads Treads Light Treads Flight Unit Flying Fortress v7 Utility High-capacity Storage Unit Device Long-range Sensor Array Storage High-capacity Storage Unit Processor Improved Signal Interpreter Hackware Hacking Suite Protection Light Armor Plating Weapon Heavy Assault Rifle Energy Gun EM Pulse Gun Energy Cannon Plasma Cannon Ballistic Gun Heavy Assault Rifle Launcher Grenade Launcher Slashing Weapon Longsword +1 Build | -11 -10 -10 -10 -9 -8 -7 ------- Run | Scr Mat Min Exi Min Mat Fac Slots Evolved 6 | . . . . . 4 2 Power . | . . . . . . . Propulsion 2 | . . . . . 2 . Utility 4 | . . . . . 2 2 Weapon . | . . . . . . . Parts Attached 63 | 6 4 5 2 2 24 20 Power 7 | 1 . 1 . . 3 2 Engine 4 | 1 . 1 . . 1 1 Core 3 | . . . . . 2 1 Reactor . | . . . . . . . Propulsion 14 | 2 . 1 . 1 9 1 Treads 13 | 2 . 1 . 1 9 . Leg . | . . . . . . . Wheel . | . . . . . . . Hover . | . . . . . . . Flight 1 | . . . . . . 1 Utility 18 | 1 2 . 2 . 3 10 Device 2 | . . . . . . 2 Storage 10 | 1 2 . 2 . 1 4 Processor 1 | . . . . . . 1 Hackware 3 | . . . . . . 3 Protection 2 | . . . . . 2 . Artifact . | . . . . . . . Weapon 24 | 2 2 3 . 1 9 7 Energy Gun 4 | 2 1 . . . . 1 Energy Cannon 1 | . . . . . . 1 Ballistic Gun 10 | . . 1 . 1 5 3 Ballistic Cannon . | . . . . . . . Launcher 4 | . 1 2 . . 1 . Special Weapon . | . . . . . . . Impact Weapon . | . . . . . . . Slashing Weapon 5 | . . . . . 3 2 Piercing Weapon . | . . . . . . . Special Melee Weapon . | . . . . . . . Unidentified Prototypes . | . . . . . . . Parts Lost 18 | . . 3 . 3 7 5 Power 5 | . . 1 . 1 2 1 Propulsion 6 | . . 1 . 1 3 1 Utility 1 | . . . . . 1 . Weapon 6 | . . 1 . 1 1 3 Highest Loss Streak 3 | . . 2 . 2 3 3 Average Slot Usage (%) 92 | . 98 93 100 97 90 88 Engine 7 | . 14 14 14 12 . 2 Core 2 | . . . . . 4 4 Treads 25 | . 28 21 28 27 31 19 Storage 25 | . 26 28 28 28 27 20 Hackware 4 | . . . . . . 17 Protection 2 | . . . . . 7 1 Energy Gun 4 | . 27 10 . . . . Ballistic Gun 11 | . . 11 14 16 16 7 Launcher 3 | . . 6 14 10 . . Slashing Weapon 1 | . . . . . 1 5 Naked Turns . | . . . . . . . Heaviest Build 94 | 11 40 44 75 75 94 93 Greatest Support 89 | 40 40 40 40 40 89 89 Greatest Overweight (x) 2 | . . 2 1 1 2 1 Average Overweight (x) . | . . . 1 1 1 . Largest Inventory Capacity 26 | 6 16 16 20 20 26 26 Average Capacity 21 | 4 14 16 19 20 25 23 Most Carried 26 | 4 12 16 20 20 26 26 Average Carried 19 | 1 8 15 17 19 23 22 Final Capacity 26 | 6 16 16 20 20 26 18 Final Carried 26 | 4 12 14 20 18 26 17 Class Distribution -------------------- 37% | Hauler-Mutant 30% | Mutant 20% | Hacker-Mutant 11% | Scavenger-Mutant Dominant Class ---------------- Mutant | -10/Materials Mutant | -10/Mines Hauler-Mutant | -10/Exiles Hauler-Mutant | -9/Mines Hauler-Mutant | -8/Materials Hacker-Mutant | -7/Factory Resources | -11 -10 -10 -10 -9 -8 -7 ----------- Run | Scr Mat Min Exi Min Mat Fac Matter Collected 1325 | 194 116 175 . 75 532 233 Remotely . | . . . . . . . Salvage Created 1937 | . 304 132 . 86 850 565 Parts 142 | . 23 11 . 4 58 46 Haulers Intercepted . | . . . . . . . Recyclers Shooed . | . . . . . . . Parts Field Recycled . | . . . . . . . Retrieved Matter . | . . . . . . . Parts Self-Destructed . | . . . . . . . Prevented . | . . . . . . . Kills | -11 -10 -10 -10 -9 -8 -7 ------- Run | Scr Mat Min Exi Min Mat Fac Combat Hostiles Destroyed 39 | . 9 5 . 2 15 8 Melee 9 | . . . . . 1 8 Guns 21 | . 7 . . 2 12 . AOE 9 | . 2 5 . . 2 . Classes Destroyed 12 | . 3 3 . . 3 3 Worker 7 | . . 2 . . 3 2 Builder 1 | . . . . . . 1 Recycler 2 | . . 1 . . 1 . Operator 6 | . 1 . . . 3 2 Watcher 3 | . . . . . 1 2 Swarmer 9 | . 4 3 . . 2 . Grunt 15 | . 5 . . 2 6 2 Duelist 1 | . . . . . 1 . Sentry 7 | . . . . . 6 1 Hunter 4 | . . . . . . 4 Programmer 1 | . . . . . . 1 Assembled 2 | . . 2 . . . . Thug 1 | . . 1 . . . . Best Kill Streak 7 | . 3 3 . 2 3 7 Combat Bots Only 4 | . 3 3 . 2 3 4 Max Kills in Single Turn 2 | . 1 2 . 1 2 1 Gunslinging . | . . . . . . . Exploded 1 | . 1 1 . . 1 . Melee 1 | . . . . . 1 1 Uniques/NPCs Destroyed . | . . . . . . . Combat | -11 -10 -10 -10 -9 -8 -7 -------- Run | Scr Mat Min Exi Min Mat Fac Damage Taken 3067 | . 166 489 . 219 1149 1044 Core 456 | . 8 130 . 10 122 186 Absorbed by Shields . | . . . . . . . Core Remaining (%) 72 | 100 . . . 40 77 . Volleys Fired 147 | . 17 18 . 10 82 20 Largest 2 | . 2 2 . 2 2 2 Hottest 98 | . 80 80 . 43 43 98 Shots Fired 269 | . 33 23 . 20 162 31 Gun 251 | . 32 10 . 20 160 29 Cannon 2 | . . . . . . 2 Launcher 16 | . 1 13 . . 2 . Special . | . . . . . . . Kinetic 203 | . . 3 . 20 160 20 Thermal 11 | . . . . . . 11 Explosive 16 | . 1 13 . . 2 . Electromagnetic 39 | . 32 7 . . . . Robot Hit Streak 15 | . 7 8 . 4 15 8 Robot Miss Streak 3 | . 2 2 . 2 3 2 Penetration Max . | . . . . . . . Secondary Targets 2 | . 1 . . . 1 . Max Gunslinging Chain 1 | . 1 . . . 1 . Shots Hit Robots 238 | . 19 13 . 13 135 58 Core Hits 98 | . 12 14 . 5 49 18 Critical Hits 3 | . . . . . 1 2 Critical Kills . | . . . . . . . Critical Parts Destroyed 3 | . . . . . 1 2 Melee Attacks 67 | . . . . . 12 55 Impact . | . . . . . . . Slashing 67 | . . . . . 12 55 Piercing . | . . . . . . . Sneak Attacks 9 | . . . . . 4 5 Combat Hostiles 1 | . . . . . . 1 Follow-up Attacks . | . . . . . . . Damage Inflicted 6148 | . 324 588 . 177 2420 2639 Guns 2279 | . 223 115 . 177 1393 371 Cannons . | . . . . . . . Explosions 811 | . 101 468 . . 242 . Melee 3053 | . . . . . 785 2268 Ramming 5 | . . 5 . . . . Kinetic 1797 | . . 27 . 177 1393 200 Thermal 279 | . 48 60 . . . 171 Explosive 703 | . 53 408 . . 242 . Electromagnetic 311 | . 223 88 . . . . Impact . | . . . . . . . Slashing 3053 | . . . . . 785 2268 Piercing . | . . . . . . . Highest Corruption 2 | . . . . . 2 1 Average Corruption 1 | . . . . . 1 1 Corruption Purged . | . . . . . . . Effects 2 | . . . . . . 2 Message Errors 2 | . . . . . . 2 Overload Shots . | . . . . . . . Overflow Damage 537 | . . 10 . . 128 399 Projectiles . | . . . . . . . Explosions 10 | . . 10 . . . . Melee 527 | . . . . . 128 399 Knockbacks . | . . . . . . . Impact . | . . . . . . . Kinetic . | . . . . . . . Secondary . | . . . . . . . Self-Inflicted Damage 127 | . . 127 . . . . Shots 4 | . . 4 . . . . Rammed 1 | . . 1 . . . . Targets Rammed 1 | . . 1 . . . . Kicked . | . . . . . . . Crushed . | . . . . . . . Highest Temperature 144 | . 144 30 . 18 42 80 Average Temperature 29 | . 54 10 . 7 12 32 Received Heat Transfer 1023 | . 54 . . 126 621 222 Siege Activations . | . . . . . . . Robots Corrupted . | . . . . . . . Combat Hostiles . | . . . . . . . Parts Fried 1 | . . 1 . . . . Impact Corruptions . | . . . . . . . Robots Melted . | . . . . . . . Combat Hostiles . | . . . . . . . Parts Melted . | . . . . . . . Heat Transferred 396 | . . 100 . . . 296 Parts Sabotaged . | . . . . . . . Parts Stolen . | . . . . . . . Parts Stripped . | . . . . . . . Power Chain Reactions 2 | . 1 1 . . . . Missiles Intercepted . | . . . . . . . Alert | -11 -10 -10 -10 -9 -8 -7 ------- Run | Scr Mat Min Exi Min Mat Fac Peak Influence 405 | . 270 100 . 40 269 405 Initial 121 | . . 28 . . 15 121 Average 87 | . 82 34 . 3 103 134 Maximum Alert Level 2 | . 1 . . . 1 2 Low Security (%) 86 | 100 92 100 . 100 83 75 Level 1 12 | . 7 . . . 16 24 Level 2 . | . . . . . . . Level 3 . | . . . . . . . Level 4 . | . . . . . . . Level 5 . | . . . . . . . High Security . | . . . . . . . Max Security . | . . . . . . . Squads Dispatched 14 | . 4 . . . 3 7 Investigation 5 | . 2 . . . . 3 Extermination 1 | . . . . . . 1 Reinforcement 8 | . 2 . . . 3 3 Assault . | . . . . . . . Garrison . | . . . . . . . Intercept . | . . . . . . . Construction Impeded . | . . . . . . . Haulers Reinforced . | . . . . . . . Stealth | -11 -10 -10 -10 -9 -8 -7 --------- Run | Scr Mat Min Exi Min Mat Fac Distress Signals 5 | . . . . . 4 1 Communications Jammed . | . . . . . . . Distress Signals . | . . . . . . . Times Spotted 89 | . 15 8 . 2 37 27 Peak Tracking Total 6 | . 4 3 . 2 4 6 Tactical Retreats 10 | . 1 . . . 2 7 Traps | -11 -10 -10 -10 -9 -8 -7 ------- Run | Scr Mat Min Exi Min Mat Fac Traps Triggered 5 | . 2 . . . 2 1 Indirectly . | . . . . . . . Trap Hack Attempts . | . . . . . . . Triggered . | . . . . . . . Disarmed . | . . . . . . . Reprogrammed . | . . . . . . . Reused . | . . . . . . . Traps Extracted . | . . . . . . . Installed . | . . . . . . . Triggered . | . . . . . . . Machines | -11 -10 -10 -10 -9 -8 -7 ---------- Run | Scr Mat Min Exi Min Mat Fac Machines Disabled 2 | . 1 1 . . . . Max in Single Turn 1 | . 1 1 . . . . Garrison Access 2 | . . . . . 1 1 Machines Sabotaged . | . . . . . . . Garrisons Compromised . | . . . . . . . Overloaded Fab Kills . | . . . . . . . Fab Network Shutdowns . | . . . . . . . Hacking | -11 -10 -10 -10 -9 -8 -7 --------- Run | Scr Mat Min Exi Min Mat Fac Machines Accessed 14 | . 2 . 2 . 3 7 Terminals 7 | . 2 . . . 2 3 Fabricators 1 | . . . . . . 1 Repair Stations . | . . . . . . . Recycling Units 1 | . . . . . . 1 Scanalyzers 1 | . . . . . . 1 Garrison Access 2 | . . . . . 1 1 Total Hacks 31 | . 4 . 2 . 6 19 Successful 15 | . 1 . 2 . 3 9 Failed 16 | . 3 . . . 3 10 Catastrophic 3 | . . . . . 1 2 Database Lockouts . | . . . . . . . Manual 18 | . 1 . 1 . 5 11 Terminals 17 | . 4 . . . 5 8 Fabricators 4 | . . . . . . 4 Repair Stations . | . . . . . . . Recycling Units 1 | . . . . . . 1 Scanalyzers 3 | . . . . . . 3 Garrison Access 4 | . . . . . 1 3 Terminal Hacks 6 | . 1 . 2 . 1 2 Record 1 | . . . 1 . . . Part Schematic 1 | . . . . . . 1 Robot Analysis 1 | . 1 . . . . . Terminal Index 1 | . . . . . . 1 Hauler Manifests 1 | . . . . . 1 . EX-Prototype ID Bank 1 | . . . 1 . . . Fabricator Hacks 2 | . . . . . . 2 Load Schematic 1 | . . . . . . 1 Build 1 | . . . . . . 1 Repair Station Hacks . | . . . . . . . Recycling Unit Hacks 1 | . . . . . . 1 Retrieve Components 1 | . . . . . . 1 Scanalyzer 1 | . . . . . . 1 Insert Component 1 | . . . . . . 1 Garrison Access Hacks 1 | . . . . . 1 . Seal Access 1 | . . . . . 1 . Unauthorized Hacks 4 | . . . . . 1 3 Terminals 1 | . . . . . 1 . Assimilate 1 | . . . . . 1 . Fabricators 2 | . . . . . . 2 Prioritize 1 | . . . . . . 1 Siphon 1 | . . . . . . 1 Repair Stations . | . . . . . . . Recycling Units . | . . . . . . . Scanalyzers . | . . . . . . . Garrison Access 1 | . . . . . . 1 Jam 1 | . . . . . . 1 Data Cores Recovered . | . . . . . . . Used . | . . . . . . . Hacking Detections 9 | . 2 . . . 2 5 Full Trace Events 2 | . . . . . . 2 Feedback Events . | . . . . . . . Feedback Blocked . | . . . . . . . Robot Schematics Acquired . | . . . . . . . Robots Built . | . . . . . . . Matter . | . . . . . . . Time . | . . . . . . . Total Robot Build Rating . | . . . . . . . Part Schematics Acquired 1 | . . . . . . 1 Parts Built 1 | . . . . . . 1 Matter 168 | . . . . . . 168 Time 84 | . . . . . . 84 Total Part Build Rating 4 | . . . . . . 4 Parts Repaired . | . . . . . . . Time . | . . . . . . . Parts Recycled . | . . . . . . . Recycled Matter . | . . . . . . . Retrieved Matter . | . . . . . . . Retrieved Components 1 | . . . . . . 1 Parts Scanalyzed 1 | . . . . . . 1 Part Schematics Acquired . | . . . . . . . Parts Damaged . | . . . . . . . Bothacking | -11 -10 -10 -10 -9 -8 -7 ------------ Run | Scr Mat Min Exi Min Mat Fac Used RIF Installer . | . . . . . . . Robots Hacked . | . . . . . . . Non-combat . | . . . . . . . Combat . | . . . . . . . Robot Hacks Applied . | . . . . . . . Relay Couplers Released . | . . . . . . . Robots Rewired . | . . . . . . . Allies Hacked . | . . . . . . . Hacks Repelled . | . . . . . . . Allies | -11 -10 -10 -10 -9 -8 -7 -------- Run | Scr Mat Min Exi Min Mat Fac Total Allies 2 | . . . . 1 1 . Largest Group 1 | . . . . 1 . . Highest-Rated Group 31 | . . . . 31 . . Highest-Rated Ally 31 | . . . . 31 . . Total Orders . | . . . . . . . Ally Attacks 6 | . . . . 6 . . Total Damage 108 | . . . . 108 . . Kills . | . . . . . . . Allies Corrupted . | . . . . . . . Allies Melted . | . . . . . . . Intel | -11 -10 -10 -10 -9 -8 -7 ------- Run | Scr Mat Min Exi Min Mat Fac Robot Analysis Total 1 | . 1 . . . . . Derelict Logs Recovered 3 | . . 1 . 2 . . Drone Launches . | . . . . . . . Drone Recoveries . | . . . . . . . Exploration | -11 -10 -10 -10 -9 -8 -7 ------------- Run | Scr Mat Min Exi Min Mat Fac Turns Passed 6517 | 89 526 1169 932 385 1850 1566 Spaces Moved 3501 | 50 262 613 514 187 776 1099 Core 3 | 3 . . . . . . Treads 2952 | 47 262 613 514 187 776 553 Legs . | . . . . . . . Wheels . | . . . . . . . Hover . | . . . . . . . Flight 546 | . . . . . . 546 Fastest Speed 50 | 50 160 160 180 180 160 50 Average Speed 156 | 153 160 175 180 180 183 110 Slowest Speed 200 | 160 160 200 180 180 200 180 Overloaded Moves . | . . . . . . . Propulsion Burnouts . | . . . . . . . Robots Hopped . | . . . . . . . Cave-ins Triggered . | . . . . . . . Exploration Rate (%) 52 | 5 58 95 72 54 58 23 Regions Visited 6 Branch Regions 3 Pre-discovered Areas 3 | . . 1 1 1 . . Known Exits Taken . | . . . . . . . Unknown Exits Taken 6 | 1 1 1 1 1 1 . Scrap Searched 3 | . . 2 . 1 . . Spaces Dug 16 | . . . . . 1 15 Terrain Destroyed 125 | . 12 70 . . 28 15 Melee 16 | . . . . . 1 15 Projectile . | . . . . . . . AOE 109 | . 12 70 . . 27 . Terrain Rammed . | . . . . . . . Walls Destroyed . | . . . . . . . Machines Disabled . | . . . . . . . Actions | -11 -10 -10 -10 -9 -8 -7 --------- Run | Scr Mat Min Exi Min Mat Fac Total 4233 | 59 335 687 522 218 1045 1367 Wait 360 | . 40 34 . 20 121 145 Move 3495 | 49 261 612 513 186 775 1099 Hop . | . . . . . . . Pick Up 58 | 4 10 11 4 . 18 11 Fast Attach 16 | 6 1 . . . 8 1 Attach 19 | . . 3 . 2 6 8 Detach 4 | . . . . . 1 3 Swap 28 | . 3 2 2 . 10 11 Drop 38 | . 3 6 3 . 12 14 Fire 147 | . 17 18 . 10 82 20 Melee 67 | . . . . . 12 55 Ram . | . . . . . . . Kick . | . . . . . . . Crush 1 | . . 1 . . . . Escape Stasis . | . . . . . . . Rewire . | . . . . . . . Trap . | . . . . . . . Miscellaneous . | . . . . . . . Route ------- -11/Scrapyard -10/Materials (discovered 3 exits: [*Mat x2] / [*Min]) -10/Mines (discovered 3 exits: [*Mat x2] / *Exi) -10/Exiles -9/Mines (discovered 2 exits: *Mat x2) -8/Materials (discovered 2 exits: *Fac / Sto) -7/Factory History --------- Turn | Location | Event 6 | -11/Scrapyard | Discovered new exit (range 16) 90 | -11/Scrapyard | Entered Materials 265 | -10/Materials | Discovered new exit (range 15) 329 | -10/Materials | Build established: Mutant 394 | -10/Materials | Discovered new exit (range 10) 596 | -10/Materials | Discovered new exit (range 11) 616 | -10/Materials | Entered Mines 623 | -10/Mines | Received a Rocket Launcher from a helpful Derelict 629 | -10/Mines | Met a Derelict bent on vengeance 641 | -10/Mines | Learned Materials interactive machine intel 669 | -10/Mines | Found a hidden stash of uninstalled traps 734 | -10/Mines | Joined a pair of Derelicts in attacking an 0b10 outpost 892 | -10/Mines | A weapon hastily lodged in a ceiling crevice suddenly fell to the ground 1005 | -10/Mines | Deemed a non-threat by the Exiles lab entrance 1005 | -10/Mines | Discovered new exit (range 5) 1156 | -10/Mines | Discovered new exit (range 5) 1227 | -10/Mines | Assembled infested the area 1232 | -10/Mines | Assisted by a Guerilla fighting off Assembled 1494 | -10/Mines | Core integrity fell below 50% 1557 | -10/Mines | Discovered new exit (range 5) 1558 | -10/Mines | Learned location of Storage (-8) 1785 | -10/Mines | Entered Exiles 1829 | -10/Exiles | Met 8R-AWN 1857 | -10/Exiles | Met EX-HEX 1926 | -10/Exiles | Met EX-DEC 1958 | -10/Exiles | Learned location of Zion (-7) 2103 | -10/Exiles | Met EX-BIN 2129 | -10/Exiles | Aligned with FarCom system 2130 | -10/Exiles | Given EX-Vault access code 2172 | -10/Exiles | Opened EX-Vault 2184 | -10/Exiles | Found Flying Fortress v7 2191 | -10/Exiles | Found Longsword +1 2203 | -10/Exiles | Found Superbattery 2244 | -10/Exiles | Warned to stay clear of 0b10 Research branches 2300 | -10/Exiles | Build established: Hauler-Mutant 2698 | -10/Exiles | Discovered new exit (range 12) 2717 | -10/Exiles | Stole three prototypes: Flying Fortress v7, Superbattery, Longsword +1 2717 | -10/Exiles | Entered Mines 2834 | -9/Mines | Discovered new exit (range 15) 2985 | -9/Mines | Received a Mining Laser from a helpful Derelict 3090 | -9/Mines | Discovered new exit (range 5) 3102 | -9/Mines | Entered Materials 3102 | -8/Materials | Evolved 4 slots: Propulsion x2, Utility x2 3103 | -8/Materials | Identified exit to Storage 3104 | -8/Materials | Loaded intel: 18 interactive machine locations 4397 | -8/Materials | Build established: Scavenger-Mutant 4588 | -8/Materials | Lost 3 parts (2n1w) 4690 | -8/Materials | Discovered new exit (range 5) 4952 | -8/Materials | Entered Factory 4952 | -7/Factory | Evolved 2 slots: Utility x2 4954 | -7/Factory | FarCom data flow suspended 4961 | -7/Factory | Build established: Hauler-Mutant 5488 | -7/Factory | Build established: Hacker-Mutant 5672 | -7/Factory | Lost 3 parts (1p2w) 5878 | -7/Factory | Fabricated Lrn. Sensor Array (x1) 6518 | -7/Factory | Self-destructed Last Messages --------------- 06362_ LF1IT KVV/QE&| QI:0=2A DVDHR4C>QTV 06388_ O-16 Technician: "IFF HANDSHAKE FAILED. SECURING TERMINAL." 06392_ ALERT: Hostiles spotted, dispatching reinforcements to Terminal F010. 06398_ Sneak attack on O-16 Technician. 06398_ O-16 Technician suffers critical hit. 06398_ Destroyed Hover Unit. 06410_ O-16 Technician destroyed. 06413_ Acquired Hacking Suite. 06425_ Connecting with Fabricator... 06434_ U-05 Engineer builds a Wall. 06450_ Acquired 20 matter. 06462_ Slug penetrates Wall. 06463_ R-06 Scavenger sends out distress signal. 06477_ U-05 Engineer builds a Wall. 06505_ Destroyed Imp. Heat Sink. 06509_ U-05 Engineer builds a Wall. 06512_ Y-54 Guardian destroyed. 06513_ C-30 ARC bursts open, deploying its payload. 06513_ S-27 Virus unfolds itself. Map ----- +----------------------------------------------------+ | ???????????????????????????+ #???????????????? | | ???????????????????????????# #???????????????? | | ??????????????????########## #???????????????? | | ???????????????? # #???????????????? | | ????????????????"" """ """ # #???????????????? | | ????????????????"" """ """ # #???????????????? | | ?????????????# """ """ """ # #???????????????? | | ?????????????# + #???????????????? | | ?????????????# / # #???????????????? | | ??????????????##############k #???????????????? | | ???????????????############# #???????????????? | | ???????????????# ## #???????????????? | | ???????????????# ## #???????????????? | | ???????????????# ## g #???????????????? | | ???????????????# ## g #??? ???????????? | | ???????????????#* ## #?? ?+???????? | | ???????????????# ##g g #?? #???????? | | ???????????????# ] ## #?? #???????? | | ???????????????# u ## #?? #???????? | | ???????????????# ## #?# #???????? | | ???????????????# ## #?# #???????? | | ???????????????# / ## #?# #???????? | | ???????????????# ## #?# +???????? | | ???????????????# ## #?# #???????? | | ???????????????# ## ### #???????? | | ???????????????# =*@# ## #???????? | | ???????????????#########s## ######### | | ????????????r????? %ssu | | ????????????????r s | | ????????????kkk?k | | ??????????????????######+## ######### | | ?????????????????????? ?# r ###/#####??????? | | ????????????????????? ??###u ##" ##?????? | | ????????????????????"""?????# ### """ ######## | | ????????????????????????????# #?# """ ## | | ????????????????????????????# u #?# """ ## | | ????????????????????????????# #?# ##!![ | | ??????????????????????????### #?# """ ##!! | | ??????????????????????????? #?# / """ ##![ | | ????????????????????????????# #?# """ ## % | | ????????????????????????????# #?# ####+### | | ????????????????????????????# ############ % # | | ????????????????????????????# ! %# | | ????????????????????????????# | | ??????????????????????##????# # | | ??????????????????????#########+############ # | | ???????????????????????# #??????????### ### | | ???????????????????????# !!! #????????????# #?? | | ???????????????????????# !! #????????????# #?? | | ???????????????????????# !! #????????????# #?? | +----------------------------------------------------+ Best States ------------- Heat Dissipation 34 Energy Generation 18 Energy Capacity 250 Matter Stores 300 Matter Capacity 300 Sight Range 16 Robot Scan Range 20 Terrain Scan Range 20 Terrain Scan Density 10 Armor Coverage 150 Evasion (%) 60 Recoil Reduction 4 Offensive Hacking 20 Defensive Hacking 10 Item Schematics ----------------- Lrn. Sensor Array | -7/Factory | Hacked Robot Schematics ------------------ None Fabricated ------------ Lrn. Sensor Array | x1 | -7/Factory Alien Tech Used ----------------- None Achievements -------------- None Challenges ------------ None Game ------ Seed AntimatterTrapStripper Manual? 0 Play Time 00:36:52 Cumulative 134.1 hours Start 2020.11.09 @ 12:37:07 End 2020.11.09 @ 13:13:00 Sessions 1 Manual Loads 0 Difficulty Rogue Special Mode Halloween2020/ForbiddenLore Game No. 164 Rogue 77 Adventurer 87 Explorer 0 Win Type - Total 4 Types 3/0/0/1/0/0/0/0/0 Lore% 57 Gallery% 67 Achievement% 56 Wizard Run 0 Options --------- ASCII 0 Keyboard 1 Movement Numpad Keybinds 0 Fullscreen 1 Font 18/Smallcaps Map View 76x50 Tactical HUD 1 Map Filters NONE Filters NONE Steam 1 RUN: 04171341-de46-4bdf-9624-6d34bd581038